bitfinex/quotes_ETHUSD_20250324
["timestamp","ask_amount","ask_price","bid_price","bid_amount"]
[1742817251206,5.54414,2099.6,2099.2,4.7637]
[1742817251511,4.76304,2099.5,2099.1,11.81549812]
[1742817251810,4.76304,2099.5,2099.2,4.76371]
[1742817253614,4.76304,2099.5,2099.1,11.81549812]
[1742817253912,9.52628,2099.5,2099.1,11.81547812]
[1742817254110,0.7813,2099.6,2099.1,7.05166812]
[1742817254317,9.52685,2099.4,2099.1,7.05166812]
[1742817254880,0.8074,2099.3,2098.9,0.18151931]
[1742817255088,4.76417,2099.0,2098.9,0.18151931]
[1742817255904,20.150789,2099.0,2098.9,0.18151931]
[1742817256085,23.6686389,2099.0,2098.9,0.18151931]
[1742817256285,28.2146389,2099.0,2098.9,0.18151931]
[1742817256721,32.0623406,2099.0,2098.9,0.18151931]
[1742817257214,28.2146389,2099.0,2098.9,0.18151931]
[1742817257414,16.9977771,2099.0,2098.9,0.18151931]
[1742817257618,13.4799272,2099.0,2098.9,0.18151931]
[1742817260198,12.6725272,2099.0,2098.9,0.18151931]
[1742817260798,21.2337672,2099.0,2098.9,0.18151931]
[1742817260999,19.1049142,2099.0,2098.9,0.18151931]
[1742817261212,12.6725272,2099.0,2098.9,0.18151931]
[1742817261610,7.9083572,2099.0,2098.9,0.18151931]
[1742817261809,4.9083572,2099.0,2098.9,0.18151931]
[1742817262429,3.0,2099.1,2098.9,4.94589931]
[1742817262594,3.0,2099.1,2098.9,0.18151931]
[1742817263127,3.35149369,2099.1,2098.9,0.18151931]
[1742817263506,8.11557369,2099.1,2098.9,0.18151931]
[1742817264223,4.76417,2099.0,2098.9,0.18151931]
[1742817264428,8.11550369,2099.1,2098.9,0.18151931]
[1742817264624,3.35149369,2099.1,2098.9,4.94580931]
[1742817265133,7.76357,2099.3,2098.9,5.99783424]
[1742817265304,7.76357,2099.3,2098.9,4.94580931]
[1742817265628,4.76379,2099.2,2098.9,4.94580931]
[1742817265812,7.76357,2099.3,2098.9,4.94580931]
[1742817265813,4.76396,2099.1,2098.9,0.18151931]
[1742817266013,4.76417,2099.0,2098.9,0.18151931]
[1742817266217,4.76396,2099.1,2098.9,0.18151931]
[1742817266825,5.11319846,2099.1,2098.9,0.18151931]
[1742817267034,4.76396,2099.1,2098.9,0.18151931]
[1742817268934,4.76548,2098.5,2098.1,4.76611]
[1742817269304,4.76555,2098.4,2098.1,4.76611]
[1742817270002,4.76555,2098.4,2098.0,4.76636]
[1742817270535,4.76577,2098.3,2098.0,5.7110157]
[1742817270921,5.11936645,2098.4,2098.0,5.7110157]
[1742817271099,4.76578,2098.3,2098.0,5.7110157]
[1742817271506,5.11938645,2098.4,2098.0,10.4772657]
[1742817271802,9.53128,2098.4,2098.0,5.7109057]
[1742817272736,4.76557,2098.4,2098.0,10.4772157]
[1742817272947,9.53127,2098.4,2098.0,5.7109057]
[1742817273133,4.76557,2098.4,2098.0,5.7109057]
[1742817273826,4.76557,2098.4,2098.1,0.12549614]
[1742817274208,9.53128,2098.4,2098.1,0.12549614]
[1742817274502,4.76577,2098.3,2098.1,0.12549614]
[1742817275935,4.7658,2098.3,2098.1,0.12549614]
[1742817276537,9.53172,2098.3,2098.1,0.12549614]
[1742817276708,4.76598,2098.2,2098.1,0.12549614]
[1742817276910,4.76589,2098.3,2098.1,0.12549614]
[1742817277636,5.12299084,2098.4,2098.1,0.12549614]
[1742817277637,5.12299084,2098.4,2098.1,4.89170614]
[1742817277831,3.0,2098.5,2098.2,5.54074]
[1742817278137,5.3707,2098.6,2098.2,5.54074]
[1742817278138,4.76442,2098.9,2098.6,0.7692]
[1742817278339,4.76442,2098.9,2098.6,5.53426]
[1742817278711,5.11426128,2098.9,2098.6,5.53426]
[1742817279140,9.87879128,2098.9,2098.6,0.7692]
[1742817279348,5.11426128,2098.9,2098.6,0.7692]
[1742817279554,9.87887128,2098.9,2098.6,0.7692]
[1742817279728,4.76463,2098.8,2098.6,0.7692]
[1742817280654,5.11430128,2098.9,2098.6,0.7692]
[1742817282018,4.76446,2098.9,2098.6,0.7692]
[1742817282553,9.52903,2098.9,2098.6,0.7692]
[1742817282727,4.76446,2098.9,2098.6,0.7692]
[1742817283143,5.12083419,2098.9,2098.6,0.7692]
[1742817284451,4.76463,2098.8,2098.6,0.7692]
[1742817284744,4.28854642,2098.8,2098.3,6.12]
[1742817284944,4.28854642,2098.8,2098.2,0.7917]
[1742817284945,4.76545,2098.5,2098.2,0.7917]
[1742817285154,4.76566,2098.4,2098.2,0.7917]
[1742817285353,4.76576,2098.3,2098.1,0.12549614]
[1742817288655,4.76576,2098.3,2098.0,0.86013474]
[1742817290629,4.76576,2098.3,2098.0,5.62655474]
[1742817291351,5.52855,2098.4,2098.0,5.62655474]
[1742817291540,10.29425,2098.4,2098.0,6.45575474]
[1742817291741,4.76579,2098.3,2098.0,6.45575474]
[1742817293063,5.52855,2098.4,2098.0,6.45575474]
[1742817293666,4.76576,2098.3,2098.0,6.45575474]
[1742817293963,5.52861,2098.4,2098.0,6.45575474]
[1742817295252,4.76584,2098.3,2098.0,0.86013474]
[1742817296260,4.76654,2098.0,2097.6,4.76719]
[1742817296461,4.7665,2098.0,2097.6,4.76719]
[1742817296668,9.53311,2098.0,2097.6,4.76719]
[1742817296871,9.53363,2097.9,2097.5,5.55248]
[1742817297071,4.76693,2097.8,2097.5,7.196506]
[1742817297280,4.76693,2097.8,2097.6,0.95093064]
[1742817297579,7.76674,2097.9,2097.5,7.196506]
[1742817297783,12.5336,2097.9,2097.5,7.196506]
[1742817298155,4.7669,2097.8,2097.5,7.196506]
[1742817298483,7.76674,2097.9,2097.5,7.196506]
[1742817298886,7.76652,2098.0,2097.6,4.76734]
[1742817299192,4.76677,2097.9,2097.5,8.15564748]
[1742817299404,4.76693,2097.8,2097.5,8.15564748]
[1742817300181,9.53399,2097.8,2097.5,0.7851]
[1742817300491,4.76758,2097.5,2097.4,6.12]
[1742817300687,4.76758,2097.5,2097.1,5.59037]
[1742817300860,4.76758,2097.5,2097.1,5.59033]
[1742817301066,4.76744,2097.6,2097.2,4.76816]
[1742817301384,4.76744,2097.6,2097.1,5.59033]
[1742817301385,4.76758,2097.5,2097.1,5.59038]
[1742817301585,9.53533,2097.5,2097.1,5.59038]
[1742817302489,4.76758,2097.5,2097.1,5.59038]
[1742817302687,4.76758,2097.5,2097.1,10.35872]
[1742817303000,4.76758,2097.5,2097.1,5.59034]
[1742817303488,4.76758,2097.5,2097.2,0.96381976]
[1742817304704,4.76758,2097.5,2097.2,5.73203976]
[1742817304907,5.90860231,2097.6,2097.2,5.73203976]
[1742817305207,3.0,2097.6,2097.3,4.76782]
[1742817305812,3.0,2097.6,2097.4,5.56019]
[1742817306271,7.76739,2097.6,2097.4,0.7924]
[1742817306797,7.76739,2097.6,2097.3,4.76799]
[1742817306999,7.76739,2097.6,2097.2,6.52441976]
[1742817307201,7.76739,2097.6,2097.2,11.29252976]
[1742817307372,7.76739,2097.6,2097.3,4.76803]
[1742817307872,8.12840427,2097.6,2097.3,4.76803]
[1742817309103,3.36101427,2097.6,2097.3,4.7679]
[1742817309716,3.36101427,2097.6,2097.3,9.53584]
[1742817309874,3.36101427,2097.6,2097.3,4.7679]
[1742817310074,3.36101427,2097.6,2097.3,9.53578]
[1742817310368,3.36101427,2097.6,2097.3,4.76788]
[1742817310577,3.36101427,2097.6,2097.4,4.76768]
[1742817310795,0.36101427,2097.6,2097.4,4.76768]
[1742817310999,3.0,2097.7,2097.4,4.76768]
[1742817311397,0.3663865,2097.7,2097.5,4.76756]
[1742817311602,13.08411,2097.9,2097.5,5.56226]
[1742817311776,19.159361,2097.9,2097.5,5.56226]
[1742817311973,14.392521,2097.9,2097.5,5.56226]
[1742817312302,5.57638,2098.1,2097.7,4.76696]
[1742817312474,9.31428,2098.1,2097.7,4.76696]
[1742817312677,3.0,2098.0,2097.7,4.76696]
[1742817313033,3.0,2098.0,2097.8,4.76676]
[1742817313301,0.36247229,2098.1,2097.9,4.76667]
[1742817313491,10.670371,2098.4,2098.0,4.76635]
[1742817313691,10.670371,2098.4,2097.9,4.7665]
[1742817313692,3.0,2098.2,2097.9,4.7665]
[1742817314003,7.76607,2098.2,2097.8,5.59395]
[1742817314502,7.76601,2098.2,2097.8,10.36071]
[1742817314674,7.76601,2098.2,2097.8,0.8272]
[1742817314876,7.76601,2098.2,2097.8,5.59395]
[1742817315079,9.71636781,2098.2,2097.8,10.36071]
[1742817315278,9.71636781,2098.2,2097.8,5.59395]
[1742817315479,5.54782,2098.1,2097.7,4.76705]
[1742817315687,5.54782,2098.1,2097.8,4.76688]
[1742817315901,5.54782,2098.1,2097.7,4.76701]
[1742817316102,4.76669,2097.9,2097.6,12.60562265]
[1742817316313,7.76652,2098.0,2097.6,17.37270265]
[1742817316520,7.76652,2098.0,2097.6,17.37269265]
[1742817316688,7.76652,2098.0,2097.6,11.64271]
[1742817317006,4.76691,2097.8,2097.6,6.12]
[1742817317223,7.76645,2098.0,2097.7,4.76712]
[1742817317375,9.44506818,2098.0,2097.7,4.76712]
[1742817317582,7.76645,2098.0,2097.7,4.76712]
[1742817318590,7.76645,2098.0,2097.6,9.53443]
[1742817319002,7.76645,2098.0,2097.6,4.76716]
[1742817319184,7.76645,2098.0,2097.7,4.76705]
[1742817320798,12.53305,2098.0,2097.6,4.76716]
[1742817320998,7.76645,2098.0,2097.6,4.76716]
[1742817321198,7.76645,2098.0,2097.7,4.76703]
[1742817321398,3.0,2098.0,2097.7,9.53407]
[1742817321608,3.0,2098.0,2097.7,10.36687]
[1742817321816,3.0,2098.0,2097.8,4.76686]
[1742817323812,3.0,2098.0,2097.7,10.36685]
[1742817324187,3.0,2098.0,2097.7,5.59982]
[1742817324412,3.0,2098.0,2097.9,4.76667]
[1742817326909,3.0,2098.0,2097.8,4.7668]
[1742817327116,3.0,2098.0,2097.8,9.53353]
[1742817327509,3.0,2098.0,2097.9,4.76667]
[1742817330915,3.0,2098.0,2097.8,4.76673]
[1742817331414,7.76654,2098.0,2097.7,0.8328]
[1742817331720,8.57970625,2098.0,2097.7,5.5999]
[1742817331925,7.76654,2098.0,2097.7,5.5999]
[1742817332609,7.76654,2098.0,2097.6,10.88727]
[1742817332610,12.53314,2098.0,2097.6,10.88727]
[1742817332815,7.76654,2098.0,2097.6,10.88725]
[1742817333029,7.76654,2098.0,2097.6,10.8872]
[1742817333424,7.76654,2098.0,2097.7,4.76711]
[1742817333594,7.76654,2098.0,2097.6,10.8872]
[1742817333797,7.76654,2098.0,2097.6,15.65447]
[1742817334123,7.76654,2098.0,2097.6,10.8872]
[1742817334425,7.76654,2098.0,2097.6,15.65442]
[1742817334625,12.53313,2098.0,2097.6,10.8872]
[1742817334821,7.76654,2098.0,2097.6,10.8872]
[1742817335124,7.76654,2098.0,2097.6,15.65444]
[1742817335125,12.53315,2098.0,2097.6,15.65444]
[1742817335336,7.76654,2098.0,2097.6,15.65444]
[1742817335707,4.7667,2097.9,2097.6,10.8872]
[1742817335896,5.57342,2097.7,2097.6,6.12]
[1742817336093,8.57342,2097.7,2097.6,6.12]
[1742817340912,4.76774,2097.5,2097.1,6.53143005]
[1742817341109,9.53551,2097.5,2097.1,6.53143005]
[1742817341729,4.76774,2097.5,2097.1,12.88445106]
[1742817342103,4.76774,2097.5,2097.1,12.88440106]
[1742817342814,9.53546,2097.5,2097.1,8.11604106]
[1742817343032,4.76772,2097.5,2097.1,12.88440106]
[1742817343505,9.53545,2097.5,2097.1,8.11604106]
[1742817344235,4.76781,2097.4,2097.1,1.76311005]
[1742817344437,4.76811,2097.3,2096.9,5.55361]
[1742817344924,9.5363,2097.3,2096.9,5.55361]
[1742817345232,5.57161,2097.4,2097.0,9.5371]
[1742817345432,5.57161,2097.4,2097.0,5.73638981]
[1742817346334,4.76809,2097.3,2097.0,0.96788981]
[1742817346639,4.76809,2097.3,2097.0,5.73652981]
[1742817346935,4.76809,2097.3,2097.0,5.73653981]
[1742817347132,5.57163,2097.4,2097.1,4.76848]
[1742817347335,9.53543,2097.5,2097.1,4.76848]
[1742817347519,5.1250472,2097.5,2097.1,4.76838]
[1742817348049,5.1250472,2097.5,2097.2,4.76823]
[1742817348237,5.1250472,2097.5,2097.1,4.76838]
[1742817348532,5.1250472,2097.5,2097.1,4.76832]
[1742817349037,3.3574072,2097.5,2097.2,4.76809]
[1742817349203,0.3574072,2097.5,2097.3,4.76796]
[1742817349409,13.10198,2097.6,2097.3,4.76796]
[1742817349635,13.10198,2097.6,2097.2,5.59479]
[1742817350563,13.10198,2097.6,2097.2,0.8267]
[1742817350845,13.10211,2097.6,2097.2,5.59492]
[1742817351818,13.10211,2097.6,2097.3,4.76802]
[1742817352440,13.10211,2097.6,2097.2,10.36302]
[1742817352614,13.10211,2097.6,2097.2,5.5948]
[1742817352809,13.10211,2097.6,2097.2,10.36291]
[1742817353942,13.10211,2097.6,2097.3,4.76802]
[1742817357045,17.86958,2097.6,2097.2,4.7681]
[1742817357231,13.10207,2097.6,2097.2,4.7681]
[1742817357941,13.10207,2097.6,2096.9,4.76874]
[1742817357942,3.0,2096.9,2096.6,4.76953]
[1742817358259,3.0,2097.1,2096.8,4.76909]
[1742817358423,3.0,2097.1,2096.8,5.55759]
[1742817358748,10.12385,2097.3,2096.9,4.76888]
[1742817358917,4.76826,2097.2,2096.9,4.76888]
[1742817359116,4.76826,2097.2,2096.8,5.5576]
[1742817359354,4.76826,2097.2,2096.8,10.32661]
[1742817359519,4.76826,2097.2,2096.8,5.55751]
[1742817360013,4.76826,2097.2,2096.8,6.52383475]
[1742817360217,4.76826,2097.2,2096.8,5.55751]
[1742817360414,4.76826,2097.2,2096.8,10.32654]
[1742817360617,14.89207,2097.3,2096.9,4.76883]
[1742817360843,5.3558,2097.3,2097.0,4.76861]
[1742817361049,4.546,2097.3,2097.0,4.76861]
[1742817361247,4.546,2097.3,2097.0,9.53719]
[1742817361439,4.546,2097.3,2097.1,4.76837]
[1742817362120,4.546,2097.3,2097.0,5.801149]
[1742817362816,4.546,2097.3,2097.0,4.76858]
[1742817363023,4.76788,2097.4,2097.0,4.76858]
[1742817363222,4.76819,2097.3,2096.9,9.53777]
[1742817364034,4.76784,2097.4,2097.0,4.76865]
[1742817364235,4.76784,2097.4,2097.0,4.76858]
[1742817364455,4.7681,2097.3,2097.0,4.76858]
[1742817366158,4.76784,2097.4,2097.0,4.7685]
[1742817366321,9.53581,2097.4,2097.0,4.7685]
[1742817366728,4.76805,2097.3,2097.0,4.7685]
[1742817369232,9.53631,2097.3,2096.9,4.76885]
[1742817369446,10.90249564,2097.3,2096.9,4.76885]
[1742817369648,5.55574,2097.2,2096.7,5.72251498]
[1742817369846,4.76857,2097.1,2096.8,4.76905]
[1742817370246,5.55574,2097.2,2096.8,9.53803]
[1742817370575,10.32421,2097.2,2096.8,4.76898]
[1742817370739,5.55574,2097.2,2096.8,9.53801]
[1742817371366,4.76812,2097.3,2097.0,4.76866]
[1742817371868,4.76812,2097.3,2096.9,5.53135]
[1742817372067,4.76812,2097.3,2096.9,10.30018]
[1742817372269,9.53637,2097.3,2096.9,5.53133]
[1742817372644,4.76812,2097.3,2096.9,10.30011]
[1742817372850,9.53635,2097.3,2096.9,5.53128]
[1742817373252,4.76812,2097.3,2096.9,5.53128]
[1742817374376,4.76828,2097.2,2096.9,5.53128]
[1742817375154,4.76828,2097.2,2096.8,4.76915]
[1742817375583,4.7685,2097.1,2096.8,4.76915]
[1742817375782,4.76872,2097.0,2096.7,1.74764498]
[1742817376076,4.76872,2097.0,2096.7,0.95314498]
[1742817376581,4.76931,2096.8,2096.6,6.12]
[1742817376767,0.7556,2096.8,2096.4,5.72281038]
[1742817377084,5.52484,2096.8,2096.5,4.76977]
[1742817377462,5.52484,2096.8,2096.4,14.73488142]
[1742817377781,10.64716805,2096.8,2096.4,9.96492142]
[1742817377981,5.87783805,2096.8,2096.4,9.96492142]
[1742817378379,5.87783805,2096.8,2096.4,10.49279038]
[1742817378974,4.7694,2096.7,2096.4,5.72281038]
[1742817379155,5.87783805,2096.8,2096.4,10.49273038]
[1742817379483,10.64718805,2096.8,2096.4,5.72281038]
[1742817379885,5.87783805,2096.8,2096.4,10.49278038]
[1742817380183,10.64717805,2096.8,2096.4,5.72281038]
[1742817380389,5.87783805,2096.8,2096.4,5.72281038]
[1742817380620,5.87783805,2096.8,2096.4,10.49275038]
[1742817380766,5.87783805,2096.8,2096.4,5.72281038]
[1742817381384,10.64718805,2096.8,2096.4,5.72281038]
[1742817381572,5.87783805,2096.8,2096.4,5.72281038]
[1742817381898,10.64716805,2096.8,2096.4,5.72281038]
[1742817382284,4.7694,2096.7,2096.4,5.72281038]
[1742817384396,4.76969,2096.6,2096.4,0.95289038]
[1742817384585,4.76995,2096.5,2096.2,4.77052]
[1742817384750,4.76995,2096.5,2096.1,0.8142]
[1742817384956,4.77018,2096.4,2096.1,0.93521503]
[1742817385177,4.77018,2096.4,2096.0,10.89088]
[1742817385371,5.801293,2096.4,2096.0,10.89088]
[1742817385780,4.77032,2096.3,2096.0,6.12]
[1742817387271,5.801273,2096.4,2096.0,4.7709]
[1742817387456,5.801273,2096.4,2096.0,4.77081]
[1742817387656,5.801273,2096.4,2096.0,9.54163]
[1742817387873,5.801273,2096.4,2096.0,9.54168]
[1742817388053,8.58279,2096.0,2095.9,0.94204317]
[1742817388275,8.58279,2096.0,2095.5,5.71960516]
[1742817388571,4.7714,2095.9,2095.5,4.77209]
[1742817388776,4.77152,2095.8,2095.4,4.77217]
[1742817389511,5.1235679,2095.8,2095.4,5.73265463]
[1742817389688,0.7572,2094.8,2094.5,0.36286912]
[1742817389881,0.7572,2094.8,2094.3,4.7747]
[1742817390081,4.77406,2094.7,2094.2,4.77487]
[1742817390486,4.77427,2094.6,2094.1,5.74219658]
[1742817390703,4.77441,2094.5,2094.1,5.74219658]
[1742817391003,0.3521554,2094.5,2094.2,4.77507]
[1742817391309,9.54861,2094.6,2094.1,4.77519]
[1742817391509,4.77442,2094.5,2094.1,4.77519]
[1742817391807,1.330581,2094.6,2094.0,4.677]
[1742817392008,1.330581,2094.6,2094.2,4.77496]
[1742817392206,1.330581,2094.6,2094.3,4.77484]
[1742817392376,0.7572,2094.8,2094.5,4.77424]
[1742817392575,0.7572,2094.8,2094.0,4.677]
[1742817392781,4.77479,2094.4,2094.0,9.45244]
[1742817393201,4.77496,2094.3,2093.9,15.67124]
[1742817393372,4.77479,2094.4,2094.0,4.77549]
[1742817393578,6.19851,2094.4,2094.0,4.77549]
[1742817394298,6.19851,2094.4,2093.9,4.77558]
[1742817394299,5.55513,2094.3,2093.9,4.77558]
[1742817394502,0.7801,2094.3,2094.0,4.77554]
[1742817394710,0.7801,2094.3,2093.9,4.77558]
[1742817395004,7.77399,2094.7,2093.8,0.799]
[1742817395005,3.0,2094.7,2094.4,4.77459]
[1742817395678,4.77422,2094.6,2094.2,4.77494]
[1742817395872,4.77422,2094.6,2094.2,4.7749]
[1742817396704,9.106734,2094.7,2094.3,4.77486]
[1742817397681,4.332754,2094.7,2094.4,4.77461]
[1742817398078,4.332754,2094.7,2094.3,9.5496]
[1742817398278,3.0,2094.7,2094.3,9.5496]
[1742817398484,7.77396,2094.7,2094.3,9.54949]
[1742817398708,7.77396,2094.7,2094.3,4.77474]
[1742817399314,7.77396,2094.7,2094.3,9.54946]
[1742817399605,7.77396,2094.7,2094.3,4.77472]
[1742817400079,7.77396,2094.7,2094.3,9.54941]
[1742817400279,7.77396,2094.7,2094.3,4.77469]
[1742817400879,9.14282938,2094.7,2094.3,4.77469]
[1742817401101,9.14282938,2094.7,2094.3,9.54938]
[1742817401487,9.14282938,2094.7,2094.3,4.77469]
[1742817401926,4.77418,2094.6,2094.3,4.77469]
[1742817402089,9.14286938,2094.7,2094.3,9.54945]
[1742817402287,9.14286938,2094.7,2094.3,4.77469]
[1742817402794,1.50577032,2094.6,2094.3,9.54946]
[1742817403032,7.774,2094.7,2094.3,9.54946]
[1742817403612,7.774,2094.7,2094.4,4.77462]
[1742817403984,7.774,2094.7,2094.3,4.7748]
[1742817404379,4.77427,2094.6,2094.2,4.77507]
[1742817404796,4.77427,2094.6,2094.2,9.55004]
[1742817405185,1.36892838,2094.6,2094.2,4.77497]
[1742817405402,6.14319838,2094.6,2094.2,4.77497]
[1742817405716,6.14319838,2094.6,2094.2,9.54992]
[1742817405890,6.14319838,2094.6,2094.2,4.77495]
[1742817406092,10.91757838,2094.6,2094.2,4.77491]
[1742817406409,6.14319838,2094.6,2094.2,4.77491]
[1742817406911,6.14319838,2094.6,2094.2,9.54985]
[1742817407325,6.14319838,2094.6,2094.3,4.77484]
[1742817407896,1.36892838,2094.6,2094.3,9.54954]
[1742817408095,3.0,2094.7,2094.4,4.77454]
[1742817408493,4.14101384,2094.8,2094.5,4.77433]
[1742817408925,8.91483384,2094.8,2094.4,9.54906]
[1742817409224,8.91483384,2094.8,2094.4,4.77453]
[1742817409429,8.91483384,2094.8,2094.5,4.77439]
[1742817409606,10.75227022,2094.8,2094.5,4.77439]
[1742817410008,10.75227022,2094.8,2094.4,4.77455]
[1742817410009,7.75227022,2094.8,2094.4,4.77455]
[1742817410397,7.75227022,2094.8,2094.4,9.54907]
[1742817410596,1.14101384,2094.8,2094.5,4.77432]
[1742817411630,1.14101384,2094.8,2094.5,4.77427]
[1742817411928,1.14101384,2094.8,2094.6,4.77408]
[1742817412129,0.36091384,2094.8,2094.7,4.77395]
[1742817412323,5.4377,2095.0,2094.7,4.77395]
[1742817412515,6.913309,2095.0,2094.7,4.77395]
[1742817413728,0.7777,2095.0,2094.8,4.77371]
[1742817413933,3.793,2095.3,2094.9,4.77327]
[1742817414133,4.15442935,2095.3,2095.0,4.77318]
[1742817414323,8.92707935,2095.3,2094.9,4.77327]
[1742817414525,6.60830394,2095.2,2094.9,4.77327]
[1742817414839,11.38127394,2095.2,2094.8,4.77361]
[1742817415040,3.0,2094.9,2094.6,4.77416]
[1742817415828,3.0,2094.9,2094.6,4.77403]
[1742817416202,3.7759,2095.0,2094.7,4.77387]
[1742817416416,4.81434039,2095.0,2094.7,4.77387]
[1742817419131,9.58771039,2095.0,2094.6,4.77403]
[1742817419723,9.58771039,2095.0,2094.5,4.77439]
[1742817419924,9.58771039,2095.0,2094.6,4.77417]
[1742817420736,9.58771039,2095.0,2094.7,4.77386]
[1742817421155,14.36113039,2095.0,2094.6,4.77404]
[1742817421360,6.20961304,2094.9,2094.6,4.77404]
[1742817422023,6.20961304,2094.9,2094.5,4.77437]
[1742817422357,6.20961304,2094.9,2094.5,4.77426]
[1742817422724,6.20961304,2094.9,2094.6,4.7741]
[1742817423060,1.43611304,2094.9,2094.6,4.7741]
[1742817423359,1.43611304,2094.9,2094.5,4.77426]
[1742817424421,6.20970304,2094.9,2094.6,4.77417]
[1742817424630,1.43611304,2094.9,2094.6,4.77403]
[1742817424836,3.7759,2095.0,2094.7,9.54765]
[1742817425036,3.7759,2095.0,2094.7,4.77381]
[1742817425236,3.7759,2095.0,2094.7,9.54769]
[1742817425549,3.7759,2095.0,2094.7,4.77381]
[1742817425765,3.0,2095.0,2094.8,4.77358]
[1742817425918,3.0,2095.1,2094.8,4.77354]
[1742817428644,9.32950833,2095.1,2094.7,4.77393]
[1742817428817,14.10275833,2095.1,2094.7,4.77393]
[1742817429017,14.10269833,2095.1,2094.7,4.77393]
[1742817429321,9.32950833,2095.1,2094.7,4.77393]
[1742817429527,9.32950833,2095.1,2094.7,9.54778]
[1742817429854,9.32950833,2095.1,2094.7,4.77385]
[1742817430046,14.10270833,2095.1,2094.7,4.77385]
[1742817430348,9.32950833,2095.1,2094.7,4.77385]
[1742817430554,1.01500083,2095.0,2094.6,4.77415]
[1742817430721,4.77334,2095.0,2094.6,4.77415]
[1742817431121,4.77334,2095.0,2094.6,9.54818]
[1742817431338,7.77311,2095.1,2094.7,4.77391]
[1742817431517,7.77311,2095.1,2094.7,4.77383]
[1742817431733,7.77311,2095.1,2094.7,4.7738]
[1742817432263,8.7720649,2095.1,2094.7,9.54766]
[1742817432556,8.7720649,2095.1,2094.7,9.54764]
[1742817432723,8.7720649,2095.1,2094.7,4.7738]
[1742817433125,8.7720649,2095.1,2094.7,9.54764]
[1742817433354,8.7720649,2095.1,2094.7,9.5476]
[1742817433527,13.5452949,2095.1,2094.7,4.7738]
[1742817433733,8.7720649,2095.1,2094.7,4.7738]
[1742817434139,3.9989549,2095.1,2094.8,4.77364]
[1742817434343,8.7721049,2095.1,2094.8,4.77361]
[1742817434755,0.8205,2095.2,2094.8,4.77361]
[1742817435052,3.8205,2095.2,2094.9,4.7734]
[1742817435956,8.59339,2095.2,2094.9,4.7734]
[1742817437053,3.8205,2095.2,2094.9,4.7734]
[1742817438055,3.8205,2095.2,2094.9,4.77328]
[1742817440333,5.65468793,2095.2,2094.9,4.77328]
[1742817444143,10.42753793,2095.2,2094.8,4.77371]
[1742817444573,10.42753793,2095.2,2094.8,4.77358]
[1742817445457,10.42753793,2095.2,2094.8,9.54718]
[1742817446065,15.20052793,2095.2,2094.8,4.77358]
[1742817446247,10.42753793,2095.2,2094.8,9.54716]
[1742817446448,10.42753793,2095.2,2094.8,4.77358]
[1742817447264,15.20050793,2095.2,2094.8,4.77358]
[1742817447458,10.42753793,2095.2,2094.8,9.54716]
[1742817447658,10.42753793,2095.2,2094.8,4.77358]
[1742817448467,10.42753793,2095.2,2094.8,4.77357]
[1742817448764,5.65468793,2095.2,2094.9,4.77333]
[1742817449672,4.83418793,2095.2,2094.9,4.77333]
[1742817450170,0.36142935,2095.3,2095.1,4.77283]
[1742817450367,4.77217,2095.5,2095.1,4.77289]
[1742817450556,3.0,2095.4,2095.1,4.77289]
[1742817450874,4.77217,2095.5,2095.1,9.54579]
[1742817451077,3.0,2095.4,2095.1,9.54579]
[1742817451239,3.0,2095.4,2095.1,4.77289]
[1742817452167,5.56757,2095.3,2094.9,10.89342]
[1742817452465,4.77284,2095.2,2094.9,10.89342]
[1742817453286,5.56756,2095.3,2094.9,10.89342]
[1742817453475,10.34031,2095.3,2094.9,10.89342]
[1742817453771,4.77282,2095.2,2094.9,10.89342]
[1742817454943,5.56756,2095.3,2094.9,10.89342]
[1742817455140,10.3403,2095.3,2094.9,10.89342]
[1742817455459,5.56756,2095.3,2094.9,10.89342]
[1742817455664,10.34033,2095.3,2094.9,10.89342]
[1742817455971,5.56756,2095.3,2094.9,10.89342]
[1742817456181,10.34032,2095.3,2094.9,4.77342]
[1742817456472,3.0,2095.1,2094.8,4.77369]
[1742817456871,4.77328,2095.0,2094.7,4.7739]
[1742817457075,4.77328,2095.0,2094.6,11.27128613]
[1742817457076,5.54548,2095.0,2094.6,11.27128613]
[1742817457453,0.7722,2095.0,2094.7,4.77392]
[1742817457659,7.77314,2095.1,2094.8,4.77369]
[1742817458075,8.53527,2095.2,2094.8,4.77369]
[1742817458243,4.77308,2095.1,2094.8,4.77369]
[1742817458448,7.77308,2095.1,2094.7,4.77392]
[1742817459869,4.7733,2095.0,2094.6,6.49736613]
[1742817460069,4.7733,2095.0,2094.6,6.49732613]
[1742817460266,4.7733,2095.0,2094.6,11.27134613]
[1742817460448,7.77316,2095.1,2094.7,4.77394]
[1742817460651,4.77341,2095.0,2094.6,10.33897]
[1742817460947,4.77341,2095.0,2094.6,4.77402]
[1742817461985,0.8324,2095.0,2094.7,4.77395]
[1742817462476,5.60571,2095.0,2094.6,4.77412]
[1742817462676,0.8324,2095.0,2094.7,4.77386]
[1742817463053,5.60569,2095.0,2094.7,4.77386]
[1742817464381,7.22233061,2095.0,2094.7,4.77386]
[1742817465453,2.44904061,2095.0,2094.7,4.77386]
[1742817465747,0.8324,2095.0,2094.7,4.77386]
[1742817466283,0.8324,2095.0,2094.7,9.54769]
[1742817466449,0.8324,2095.0,2094.7,4.77383]
[1742817466653,5.60569,2095.0,2094.7,4.77383]
[1742817467277,5.60569,2095.0,2094.6,9.54822]
[1742817467453,5.60569,2095.0,2094.7,4.77394]
[1742817468585,0.8324,2095.0,2094.8,4.77371]
[1742817468752,7.77306,2095.1,2094.8,4.77371]
[1742817468956,7.77306,2095.1,2094.7,4.77394]
[1742817468957,8.59396,2095.1,2094.7,4.77394]
[1742817469377,13.36715,2095.1,2094.7,4.77394]